bitfinex/quotes_SOLUSD_20250722
["timestamp","ask_amount","ask_price","bid_price","bid_amount"]
[1753202537250,0.66,203.15,203.1,9.77007925]
[1753202537453,35.42,203.14,203.11,9.77007925]
[1753202537659,35.42,203.14,203.08,4.92398733]
[1753202537823,35.42,203.14,203.1,9.77007925]
[1753202538544,35.42,203.14,203.11,9.77007925]
[1753202538840,36.07,203.14,203.1,9.77007925]
[1753202539340,40.34280339,203.14,203.06,26.0]
[1753202539542,10.42007925,203.13,203.07,9.77007925]
[1753202539748,0.65,203.13,203.07,9.77007925]
[1753202540278,0.65,203.13,203.09,9.77007925]
[1753202540451,35.42,203.14,203.1,9.77007925]
[1753202541122,40.34280204,203.14,203.09,9.77007925]
[1753202541322,40.99280204,203.14,203.09,9.77007925]
[1753202541523,0.65,203.13,203.06,26.0]
[1753202541765,0.65,203.13,203.07,9.77007925]
[1753202541930,10.42007925,203.13,203.07,9.77007925]
[1753202542432,35.38,203.12,203.07,9.77007925]
[1753202542620,36.03,203.12,203.08,9.77007925]
[1753202542827,0.65,203.15,203.04,43.94786884]
[1753202543037,36.03,203.15,203.05,0.71]
[1753202543242,36.03,203.15,203.11,9.77007925]
[1753202543447,40.95255736,203.15,203.11,9.77007925]
[1753202543655,0.65,203.21,203.14,9.77007925]
[1753202543864,0.65,203.24,203.19,9.77007925]
[1753202544045,0.65,203.23,203.19,9.77007925]
[1753202544245,0.65,203.22,203.16,9.77007925]
[1753202544437,14.4012058,203.22,203.11,0.71]
[1753202544639,10.42007925,203.21,203.14,9.77007925]
[1753202544838,45.84007925,203.2,203.12,9.77007925]
[1753202545038,0.65,203.19,203.13,9.77007925]
[1753202545567,4.92174426,203.18,203.12,9.77007925]
[1753202545869,45.84007925,203.17,203.12,88.6]
[1753202546039,45.19007925,203.17,203.12,88.6]
[1753202546365,0.65,203.16,203.12,88.6]
[1753202546661,0.65,203.15,203.12,88.6]
[1753202547655,5.57266161,203.15,203.12,88.6]
[1753202547874,4.92266161,203.15,203.12,88.6]
[1753202548446,0.65,203.14,203.12,88.6]
[1753202548747,0.65,203.14,203.06,26.0]
[1753202548748,36.03,203.13,203.08,9.77007925]
[1753202549155,9.77007925,203.11,203.06,88.6]
[1753202549340,0.65,203.1,203.06,88.6]
[1753202549541,14.69327735,203.12,203.06,88.6]
[1753202549778,9.77007925,203.11,203.04,9.77007925]
[1753202549952,43.43468397,203.1,203.01,88.60000001]
[1753202550151,36.05,203.09,203.01,88.60000001]
[1753202550353,0.65,203.08,203.01,88.60000001]
[1753202550563,35.42,203.07,203.01,88.60000001]
[1753202550770,45.19007925,203.07,203.01,88.60000001]
[1753202551271,0.65,203.06,203.01,88.60000001]
[1753202551454,10.42007925,203.06,203.01,88.60000001]
[1753202551644,14.69521715,203.04,203.01,1e-08]
[1753202551849,35.42,203.03,203.01,1e-08]
[1753202552046,0.65,203.09,203.02,10.48007925]
[1753202552250,35.42,203.09,203.04,9.77007925]
[1753202552551,36.07,203.09,203.04,9.77007925]
[1753202552746,35.42,203.09,203.05,9.77007925]
[1753202553053,35.42,203.09,203.02,0.71]
[1753202553251,50.76408255,203.09,203.02,9.77007925]
[1753202553471,50.76408255,203.09,203.01,4.92577606]
[1753202553767,50.76408255,203.09,203.02,9.77007925]
[1753202553972,50.76408255,203.09,203.01,1e-08]
[1753202553973,9.77007925,203.07,203.01,1e-08]
[1753202554359,0.65,203.08,203.01,1e-08]
[1753202554560,0.65,203.08,203.02,9.77007925]
[1753202554766,35.4,203.1,203.07,9.77007925]
[1753202555068,35.4,203.1,203.09,9.77007925]
[1753202555291,35.42,203.13,203.08,9.77007925]
[1753202555470,0.65,203.12,203.06,9.77007925]
[1753202555861,0.65,203.12,203.07,9.77007925]
[1753202556381,5.57329166,203.12,203.07,9.77007925]
[1753202556584,5.57329166,203.12,203.05,5.63486806]
[1753202556764,5.57329166,203.12,203.07,9.77007925]
[1753202556967,35.42,203.13,203.09,9.77007925]
[1753202557278,40.34198651,203.17,203.12,9.77007925]
[1753202557577,40.34198651,203.17,203.13,9.77007925]
[1753202557780,35.42,203.17,203.13,9.77007925]
[1753202557960,0.65,203.22,203.16,9.77007925]
[1753202558166,4.98034348,203.24,203.19,9.77007925]
[1753202558369,35.56,203.24,203.19,9.77007925]
[1753202558867,35.56,203.24,203.23,9.77007925]
[1753202559065,35.56,203.24,203.2,0.71]
[1753202559477,35.56,203.24,203.23,9.77007925]
[1753202559682,0.06,203.24,203.23,10.48007925]
[1753202559981,0.06,203.24,203.23,15.40061263]
[1753202560170,35.54,203.31,203.24,16.78468397]
[1753202560372,35.54,203.31,203.29,9.77007925]
[1753202560569,0.06,203.31,203.29,9.77007925]
[1753202560881,0.06,203.31,203.3,10.48007925]
[1753202561082,0.06,203.31,203.3,9.77007925]
[1753202561287,0.06,203.31,203.3,10.48007925]
[1753202561668,0.06,203.31,203.3,15.3989184]
[1753202561880,0.06,203.31,203.3,32.67548628]
[1753202563992,0.06,203.31,203.3,68.15548628]
[1753202564280,0.06,203.31,203.3,32.18360237]
[1753202564490,0.06,203.31,203.3,67.66360237]
[1753202564694,0.06,203.31,203.3,0.71]
[1753202564858,0.06,203.31,203.3,71.92007925]
[1753202565065,0.06,203.31,203.25,0.71]
[1753202565392,0.06,203.31,203.28,9.77007925]
[1753202565595,0.06,203.31,203.29,9.77007925]
[1753202565971,0.06,203.31,203.3,9.77007925]
[1753202566194,0.06,203.31,203.3,10.48007925]
[1753202566687,0.06,203.31,203.3,9.77007925]
[1753202567278,0.06,203.31,203.28,9.77007925]
[1753202569100,0.06,203.31,203.25,35.48]
[1753202569302,0.06,203.31,203.28,9.77007925]
[1753202569899,0.06,203.31,203.3,9.77007925]
[1753202570477,0.06,203.31,203.3,15.4089184]
[1753202570670,0.06,203.31,203.3,44.9289184]
[1753202570872,0.06,203.31,203.3,15.4089184]
[1753202571572,0.06,203.31,203.3,5.63883915]
[1753202571777,0.06,203.31,203.3,15.4089184]
[1753202571978,0.06,203.31,203.27,26.0]
[1753202572201,0.06,203.31,203.3,9.77007925]
[1753202573190,0.06,203.31,203.27,61.5]
[1753202573499,0.06,203.31,203.3,9.77007925]
[1753202573994,0.06,203.31,203.3,10.49007925]
[1753202574175,0.06,203.31,203.3,15.4089184]
[1753202575185,0.06,203.31,203.3,45.25007925]
[1753202576286,0.06,203.31,203.3,45.97007925]
[1753202576489,0.06,203.31,203.3,45.25007925]
[1753202577205,0.06,203.31,203.3,9.77007925]
[1753202579990,0.06,203.31,203.3,15.4089184]
[1753202580182,0.06,203.31,203.3,9.77007925]
[1753202580687,0.06,203.31,203.3,10.49007925]
[1753202581006,0.06,203.36,203.34,26.0]
[1753202581306,0.06,203.4,203.38,26.0]
[1753202581477,0.06,203.4,203.39,45.21007925]
[1753202581879,0.06,203.4,203.39,133.75007925]
[1753202582178,0.06,203.4,203.39,144.2101585]
[1753202582888,0.06,203.4,203.39,88.54]
[1753202583103,0.06,203.4,203.39,98.31007925]
[1753202583301,0.06,203.4,203.39,99.00007925]
[1753202583503,0.71,203.49,203.39,191.00650872]
[1753202583688,0.91,203.52,203.48,9.77007925]
[1753202583888,0.91,203.52,203.42,26.0]
[1753202583889,0.91,203.52,203.5,9.77007925]
[1753202584297,0.71,203.51,203.43,65.65]
[1753202584604,0.71,203.51,203.49,9.77007925]
[1753202584805,0.2,203.52,203.5,9.77007925]
[1753202584990,0.2,203.52,203.51,9.77007925]
[1753202585581,0.2,203.52,203.51,72.47484247]
[1753202585813,0.06,203.6,203.52,16.78468397]
[1753202585991,0.06,203.6,203.59,9.77007925]
[1753202586508,4.9716296,203.6,203.58,9.77007925]
[1753202586692,4.9716296,203.6,203.55,35.46]
[1753202586693,0.06,203.6,203.59,9.77007925]
[1753202592200,0.06,203.6,203.59,15.37191185]
[1753202592396,0.06,203.6,203.59,0.69]
[1753202592613,0.06,203.6,203.56,36.09]
[1753202592851,0.06,203.6,203.59,9.77007925]
[1753202593103,0.06,203.6,203.55,26.0]
[1753202593316,0.71,203.59,203.55,35.77007925]
[1753202593522,0.71,203.59,203.54,124.0]
[1753202593523,0.71,203.58,203.54,98.37007925]
[1753202593813,0.71,203.57,203.53,9.77007925]
[1753202594185,10.48007925,203.56,203.5,9.77007925]
[1753202594383,0.71,203.55,203.49,9.77007925]
[1753202594605,10.48007925,203.55,203.48,45.19007925]
[1753202595311,4.9130392,203.54,203.48,45.19007925]
[1753202595806,0.71,203.53,203.47,9.77007925]
[1753202596187,0.71,203.53,203.47,35.77007925]
[1753202596499,10.48007925,203.53,203.46,9.77007925]
[1753202597024,0.71,203.53,203.47,9.77007925]
[1753202597230,4.91352201,203.52,203.47,9.77007925]
[1753202597434,0.72,203.51,203.47,9.77007925]
[1753202597623,0.72,203.51,203.45,9.77007925]
[1753202597922,0.72,203.51,203.46,9.77007925]
[1753202598598,0.72,203.51,203.47,9.77007925]
[1753202599930,5.63381286,203.51,203.47,9.77007925]
[1753202600124,0.72,203.5,203.45,35.77007925]
[1753202600354,0.72,203.5,203.47,9.77007925]
[1753202600514,5.63350497,203.53,203.47,9.77007925]
[1753202600700,5.63350497,203.53,203.45,26.69]
[1753202600701,15.40263574,203.56,203.49,9.77007925]
[1753202600901,5.63255649,203.56,203.5,9.77007925]
[1753202601123,5.63255649,203.56,203.51,9.77007925]
[1753202601715,0.72,203.55,203.51,9.77007925]
[1753202602123,0.72,203.55,203.48,93.51429241]
[1753202602328,0.72,203.55,203.5,9.77007925]
[1753202602507,0.72,203.55,203.51,9.77007925]
[1753202602712,4.91255649,203.56,203.51,9.77007925]
[1753202603034,5.63255649,203.56,203.52,9.77007925]
[1753202603401,4.91211498,203.58,203.54,9.77007925]
[1753202603704,0.06,203.6,203.56,9.77007925]
[1753202603921,5.69161557,203.6,203.56,9.77007925]
[1753202604230,0.1,203.76,203.67,26.0]
[1753202604535,0.1,203.76,203.72,26.0]
[1753202604724,0.1,203.76,203.75,9.77007925]
[1753202604922,0.1,203.76,203.73,0.45]
[1753202605128,0.1,203.81,203.8,16.78468397]
[1753202605429,0.72,203.92,203.87,9.77007925]
[1753202605727,0.72,203.92,203.84,35.56]
[1753202605927,0.72,203.92,203.87,9.77007925]
[1753202606311,0.72,203.92,203.84,40.46579414]
[1753202606312,5.623913,203.92,203.84,40.46579414]
[1753202606619,5.623913,203.92,203.84,35.56]
[1753202606817,5.623913,203.92,203.88,9.77007925]
[1753202607006,0.72,203.92,203.89,9.77007925]
[1753202607202,0.72,203.92,203.84,35.56]
[1753202607203,5.62338852,203.95,203.84,35.56]
[1753202607402,5.62338852,203.95,203.9,14.62668941]
[1753202607864,0.72,203.94,203.89,14.62668941]
[1753202608332,0.72,203.94,203.9,14.62668941]
[1753202608504,5.62343143,203.94,203.9,14.62668941]
[1753202608703,0.72,203.93,203.87,0.35366542]
[1753202608933,0.72,203.93,203.88,14.62668941]
[1753202609230,2.4548001,203.98,203.92,14.62668941]
[1753202609533,2.4548001,203.98,203.97,14.62668941]
[1753202609836,2.4548001,203.98,203.97,31.41137338]
[1753202610136,2.4548001,203.98,203.97,52.61468397]
[1753202610442,2.4548001,203.98,203.97,67.24137338]
[1753202610607,2.4548001,203.98,203.97,72.14405514]
[1753202611009,2.4548001,203.98,203.97,14.62668941]
[1753202611210,2.4548001,203.98,203.97,50.20668941]
[1753202612139,2.4548001,203.98,203.97,67.24137338]
[1753202612317,2.4548001,203.98,203.97,81.86806279]
[1753202612741,0.72,204.12,204.01,42.78468397]
[1753202612907,0.72,204.12,204.09,14.62668941]
[1753202613112,26.72,204.12,204.1,14.62668941]
[1753202613312,0.72,204.12,204.1,14.62668941]
[1753202613526,0.72,204.12,204.09,14.62668941]
[1753202614033,11.23357064,204.15,204.1,14.62668941]
[1753202614240,5.61739948,204.19,204.14,14.62668941]
[1753202614851,0.72,204.18,204.08,26.0]
[1753202615146,0.72,204.18,204.15,14.62668941]
[1753202615511,0.72,204.17,204.13,14.62668941]
[1753202615710,0.72,204.17,204.1,0.35326687]
[1753202615711,0.72,204.16,204.1,0.35326687]
[1753202615920,26.0,204.21,204.15,14.62668941]
[1753202615921,0.72,204.2,204.15,14.62668941]
[1753202616123,0.72,204.2,204.18,14.62668941]
[1753202616321,0.1,204.19,204.17,14.62668941]
[1753202616740,0.1,204.19,204.18,14.62668941]
[1753202617238,0.1,204.19,204.18,60.93137338]
[1753202617450,0.1,204.19,204.18,61.18137338]
[1753202617610,0.1,204.19,204.18,46.55468397]
[1753202617945,0.1,204.19,204.18,60.93137338]
[1753202618115,0.1,204.19,204.18,61.18137338]
[1753202618431,0.1,204.19,204.18,82.15468397]
[1753202618738,0.1,204.19,204.18,96.78137338]
[1753202618915,0.1,204.19,204.18,97.27113731]
[1753202619709,0.1,204.19,204.18,47.0444479]
[1753202619930,0.1,204.19,204.18,96.51137338]
[1753202620125,0.1,204.19,204.18,81.88468397]
[1753202620328,0.1,204.19,204.15,29.52]
[1753202620534,0.1,204.19,204.16,14.62668941]
[1753202620830,4.9974088,204.19,204.16,14.62668941]
[1753202621031,4.9974088,204.19,204.15,14.62668941]
[1753202621235,0.1,204.19,204.18,14.62668941]
[1753202623315,0.1,204.19,204.11,0.35324957]
[1753202623316,5.71747423,204.19,204.11,0.35324957]
[1753202623645,14.62668941,204.14,204.11,0.35324957]
[1753202623941,14.62668941,204.12,203.99,30.0]
[1753202624115,14.62668941,204.09,204.03,14.62668941]
[1753202624510,0.72,204.11,204.04,14.62668941]
[1753202624819,14.62668941,204.1,204.04,14.62668941]
[1753202625030,26.0,204.02,203.86,8.73356702]
[1753202625217,14.62668941,204.0,203.93,14.62668941]
[1753202625532,14.62668941,203.94,203.87,35.6]
[1753202625737,0.72,203.95,203.91,14.62668941]
[1753202625911,14.62668941,203.97,203.9,14.62668941]
[1753202626115,14.62668941,203.95,203.89,14.62668941]
[1753202626327,14.62668941,203.94,203.88,14.62668941]
[1753202626641,15.34668941,203.93,203.83,35.64]
[1753202626847,15.34668941,203.93,203.87,14.62668941]
[1753202627014,14.62668941,203.9,203.84,14.62668941]
[1753202627215,14.62668941,203.88,203.82,14.62668941]
[1753202627532,14.62668941,203.86,203.78,35.64]
[1753202627726,0.7,203.88,203.82,14.62668941]
[1753202627941,14.62668941,203.86,203.8,14.62668941]
[1753202628237,0.7,203.86,203.79,14.62668941]
[1753202628437,14.62668941,203.85,203.79,14.62668941]
[1753202628620,15.32668941,203.86,203.79,14.62668941]
[1753202629021,4.90556781,203.85,203.79,14.62668941]
[1753202629228,15.32668941,203.86,203.79,14.62668941]
[1753202629439,14.62668941,203.98,203.79,14.62668941]
[1753202629440,0.7,203.91,203.85,14.62668941]
[1753202629737,14.62668941,203.88,203.81,14.62668941]
[1753202629941,14.62668941,203.89,203.83,14.62668941]
[1753202630411,0.7,203.89,203.85,14.62668941]
[1753202630614,26.0,203.91,203.85,14.62668941]
[1753202630922,26.0,203.91,203.84,4.9057336]
[1753202631128,14.62668941,203.89,203.82,44.14668941]
[1753202631334,31.6041372,203.91,203.84,14.62668941]
[1753202631537,0.7,203.91,203.86,14.62668941]
[1753202631842,15.32668941,203.94,203.87,14.62668941]
[1753202632015,0.7,203.93,203.86,14.62668941]
[1753202632220,0.7,203.93,203.83,46.30468397]
[1753202632221,0.7,203.93,203.87,14.62668941]
[1753202632750,0.7,203.93,203.83,46.30468397]
[1753202632926,14.62668941,203.88,203.82,14.62668941]
[1753202633126,15.32668941,203.88,203.82,14.62668941]
[1753202633719,0.7,203.88,203.83,14.62668941]
[1753202633919,0.7,203.88,203.8,65.2]
[1753202633920,0.7,203.87,203.81,44.14668941]
[1753202634148,30.90388387,203.92,203.83,14.62668941]
[1753202634149,15.32668941,203.9,203.83,14.62668941]
[1753202634640,15.32668941,203.9,203.81,29.52]
[1753202634831,15.32668941,203.9,203.84,14.62668941]
[1753202635027,4.90460542,203.89,203.83,14.62668941]
[1753202635433,14.62668941,203.87,203.81,29.52]
[1753202635737,0.7,203.88,203.83,14.62668941]
[1753202636319,0.7,203.88,203.79,26.0]
[1753202636320,14.62668941,203.89,203.79,26.0]
[1753202636645,4.9044683,203.9,203.78,0.34257372]
[1753202636646,14.62668941,203.83,203.78,0.34257372]
[1753202636948,0.7,203.82,203.78,14.96926313]
[1753202637249,14.62668941,203.84,203.78,14.96926313]
[1753202637436,4.90556781,203.85,203.78,14.96926313]
[1753202637637,14.62668941,203.83,203.78,0.34257372]
[1753202637868,0.7,203.82,203.78,0.34257372]
[1753202638040,61.76,203.86,203.78,14.96926313]
[1753202638234,67.36537346,203.86,203.78,0.34257372]
[1753202638431,14.62668941,203.84,203.78,0.34257372]
[1753202638739,0.7,203.85,203.78,0.34257372]
[1753202638935,15.32668941,203.85,203.78,14.96926313]
[1753202639130,41.32668941,203.85,203.78,14.96926313]
[1753202639335,41.32668941,203.85,203.79,14.62668941]
[1753202639534,6.9552,203.89,203.81,14.62668941]
[1753202639740,15.32668941,203.89,203.83,14.62668941]
[1753202640054,14.62668941,203.88,203.82,14.62668941]
[1753202640357,0.06,203.98,203.87,44.14668941]
[1753202640549,0.06,203.98,203.95,14.62668941]
[1753202640851,0.06,203.98,203.88,42.21997927]
[1753202640852,14.62668941,203.96,203.88,14.62668941]
[1753202641050,4.90388387,203.92,203.83,67.34595159]
[1753202641349,14.62668941,203.93,203.86,14.62668941]
[1753202641663,0.06,203.98,203.92,14.62668941]
[1753202641942,0.06,203.98,203.86,1.09053271]
[1753202641943,0.06,203.98,203.93,14.62668941]
[1753202642130,0.06,203.98,203.88,16.78468397]
[1753202642131,0.76,203.98,203.92,14.62668941]
[1753202642329,0.06,203.98,203.94,14.62668941]
[1753202642539,0.7,203.97,203.92,14.62668941]
[1753202642736,0.06,203.98,203.97,46.30468397]
[1753202642936,0.06,203.98,203.97,111.96833096]
[1753202643249,0.06,204.03,203.97,111.96833096]
[1753202643250,0.06,204.03,203.97,102.35405514]
[1753202643545,0.06,204.03,203.98,0.49024414]
[1753202643860,0.06,204.03,204.01,14.62668941]
[1753202644066,0.06,204.03,204.0,14.62668941]
[1753202644234,0.06,204.03,203.98,14.62668941]
[1753202644556,0.7,204.02,203.96,14.62668941]
[1753202644727,14.62668941,204.01,203.94,14.62668941]
[1753202644926,14.62668941,203.98,203.91,14.62668941]
[1753202645148,15.32668941,203.97,203.91,14.62668941]
[1753202645342,0.7,203.97,203.92,14.62668941]
[1753202645544,0.7,203.97,203.93,14.62668941]
[1753202645749,0.7,204.02,203.96,14.62668941]
[1753202645938,0.7,204.02,203.9,35.94]
[1753202645939,26.7,204.02,203.97,14.62668941]
[1753202646247,0.7,204.01,203.97,14.62668941]
[1753202646750,0.7,204.0,203.91,29.52]
[1753202646929,15.32668941,204.0,203.94,14.62668941]
[1753202647130,4.90220108,203.99,203.94,14.62668941]
[1753202647366,0.7,203.98,203.93,14.62668941]
[1753202648053,0.7,203.97,203.93,14.62668941]
[1753202648252,0.7,203.96,203.91,14.62668941]
[1753202648545,0.7,203.95,203.89,14.62668941]
[1753202649144,0.7,203.95,203.92,14.62668941]
[1753202649744,4.90291735,203.97,203.91,14.62668941]
[1753202650151,19.52960676,203.97,203.91,14.62668941]
[1753202650455,19.52960676,203.97,203.9,14.62668941]
[1753202650660,0.7,203.96,203.9,14.62668941]
[1753202651268,4.90316253,203.95,203.9,14.62668941]
[1753202651776,0.7,203.95,203.91,14.62668941]
[1753202651950,4.90289844,203.97,203.92,14.62668941]
[1753202652155,14.62668941,203.94,203.87,103.22668941]
[1753202652351,0.7,203.94,203.91,0.03]
[1753202652543,0.7,203.93,203.91,0.03]
[1753202652740,41.32668941,203.93,203.91,0.03]
[1753202652947,14.62668941,203.92,203.91,0.03]
[1753202653147,35.9,203.92,203.91,0.03]
[1753202653854,41.50388387,203.92,203.91,0.03]
[1753202654647,35.9,203.92,203.91,0.03]
[1753202654961,36.62,203.95,203.91,0.03]
[1753202655150,0.7,203.92,203.91,0.03]
[1753202656166,5.60388387,203.92,203.91,0.03]
[1753202656849,35.92,203.95,203.91,0.63]
[1753202657048,35.96,203.98,203.91,0.63]
[1753202657254,35.96,203.98,203.94,14.62668941]
[1753202657453,35.96,203.98,203.93,14.62668941]
[1753202657765,40.86255151,203.98,203.94,14.62668941]
[1753202657964,0.66,203.97,203.94,14.62668941]
[1753202658140,40.86255151,203.98,203.94,14.62668941]
[1753202658337,41.52255151,203.98,203.94,14.62668941]
[1753202659150,0.66,203.97,203.94,14.62668941]
[1753202659977,0.66,203.96,203.92,14.62668941]
[1753202660153,0.66,203.95,203.92,14.62668941]
[1753202660478,0.66,203.94,203.92,14.62668941]
[1753202660687,35.88,203.95,203.93,14.62668941]
[1753202661365,35.88,203.95,203.94,14.62668941]
[1753202663080,36.54,203.95,203.91,0.03]
[1753202663271,26.0,203.92,203.91,0.03]
[1753202663452,40.62668941,203.92,203.86,0.03]
[1753202663655,14.62668941,203.88,203.86,0.03]
[1753202663854,50.50668941,203.87,203.86,0.03]
[1753202664073,41.44508657,203.87,203.86,0.03]
[1753202664369,36.54,203.87,203.86,0.03]
[1753202664567,35.88,203.87,203.86,0.03]
[1753202665570,12.25791387,203.95,203.86,0.03]
[1753202665571,0.06,203.98,203.87,46.30468397]
[1753202665757,0.06,203.98,203.93,14.62668941]
[1753202666071,14.62668941,203.94,203.86,0.03]
[1753202666278,26.0,203.93,203.89,14.62668941]
[1753202666658,26.0,203.93,203.86,0.03]
[1753202666659,40.62668941,203.93,203.86,14.65668941]
[1753202666871,15.28668941,203.92,203.86,0.03]
[1753202667174,0.66,203.92,203.87,14.62668941]
[1753202667353,61.94,203.93,203.86,0.03]
[1753202667354,14.62668941,203.9,203.86,0.03]
[1753202667547,76.56668941,203.93,203.86,14.65668941]
[1753202668360,35.94,203.93,203.9,14.62668941]
[1753202668559,14.62668941,203.96,203.92,14.62668941]
[1753202668560,35.94,203.96,203.92,14.62668941]
[1753202668766,35.94,203.96,203.93,14.62668941]
[1753202669076,35.94,203.96,203.94,14.62668941]
[1753202669272,35.94,203.96,203.89,0.49046054]
[1753202669273,35.94,203.96,203.95,14.62668941]
[1753202669572,0.06,203.98,203.95,14.62668941]
[1753202670472,0.66,203.97,203.88,0.63]
[1753202670673,0.66,203.97,203.91,14.62668941]
[1753202671279,0.66,203.97,203.92,14.62668941]
[1753202671652,5.56292214,203.96,203.91,14.62668941]
[1753202671861,36.58,203.95,203.91,14.62668941]
[1753202672177,0.66,203.94,203.87,118.12]
[1753202672366,0.66,203.94,203.9,14.62668941]
[1753202673069,0.66,203.93,203.88,14.62668941]
[1753202673272,0.66,203.93,203.87,14.62668941]
[1753202673273,0.66,203.92,203.87,14.62668941]
[1753202673575,4.90389882,203.92,203.87,14.62668941]
[1753202673776,0.66,203.91,203.87,14.62668941]
[1753202673957,0.66,203.91,203.86,14.65668941]
[1753202674360,4.9036843,203.93,203.87,14.62668941]
[1753202674568,0.66,203.94,203.88,14.62668941]
[1753202674770,0.66,203.94,203.89,14.62668941]
[1753202674974,0.66,203.93,203.89,14.62668941]
[1753202675172,0.66,203.93,203.88,14.62668941]
[1753202676280,26.66,203.92,203.86,0.03]
[1753202676476,50.48668941,203.91,203.86,0.03]
[1753202676678,35.86,203.91,203.86,0.03]
[1753202676988,26.0,203.87,203.86,0.03]
[1753202677301,26.0,203.89,203.86,14.65668941]
[1753202677580,26.0,203.89,203.87,14.62668941]
[1753202677978,26.0,203.89,203.86,14.65668941]
[1753202678283,0.66,203.88,203.86,0.03]
[1753202678597,31.56467493,203.89,203.86,0.03]
[1753202678964,26.66,203.89,203.86,0.03]
[1753202679261,14.62668941,203.93,203.86,14.65668941]
[1753202679574,26.0,203.91,203.88,14.62668941]
[1753202679760,26.0,203.91,203.87,14.62668941]
[1753202680078,26.66,203.91,203.86,88.63]
[1753202680291,0.06,204.03,203.9,31.1303]
[1753202680581,0.66,204.0,203.95,14.62668941]
[1753202680782,5.56201654,204.0,203.94,14.62668941]
[1753202681083,31.56201654,204.0,203.94,14.62668941]
[1753202681286,26.66,204.0,203.94,14.62668941]
[1753202681663,26.66,204.0,203.95,14.62668941]
[1753202681974,0.66,204.0,203.91,30.15]
[1753202682177,5.56201526,204.0,203.95,14.62668941]
[1753202682376,26.0,203.93,203.89,14.62668941]
[1753202682859,26.0,203.93,203.9,14.62668941]
[1753202684367,36.12,203.95,203.92,14.62668941]
[1753202684766,36.12,203.95,203.91,14.62668941]
[1753202685367,36.78,203.95,203.9,14.62668941]
[1753202685572,36.12,203.95,203.93,14.62668941]
[1753202686290,36.12,203.95,203.9,94.13416108]
[1753202686472,36.12,203.95,203.93,14.62668941]
[1753202686667,0.06,203.98,203.94,14.62668941]
[1753202686893,0.06,203.98,203.96,14.62668941]
[1753202687802,0.06,203.98,203.96,19.52948481]
[1753202687971,0.06,203.98,203.97,14.62668941]
[1753202688790,0.06,203.98,203.97,15.25668941]
[1753202689795,0.06,203.98,203.97,20.15937117]
[1753202689970,0.06,204.03,203.99,29.52]
[1753202690288,0.06,204.03,204.02,14.62668941]
[1753202691793,0.06,204.03,204.02,50.16831767]
[1753202691995,0.06,204.03,204.02,35.54162826]
[1753202692184,0.06,204.03,204.02,49.67816965]
[1753202692696,0.06,204.03,204.02,19.52816965]
[1753202693085,0.06,204.03,204.02,20.64831767]
[1753202693270,0.06,204.03,204.02,50.16831767]
[1753202693471,0.06,204.03,204.02,49.67816965]
[1753202693806,1e-08,204.03,204.02,66.46285362]
[1753202694107,1e-08,204.03,204.02,102.48285362]
[1753202695378,1e-08,204.03,203.94,18.8569039]
[1753202695584,0.71,204.02,204.0,14.62668941]
[1753202695785,1e-08,204.03,204.0,14.62668941]
[1753202696381,1e-08,204.03,204.02,14.62668941]
[1753202697185,1e-08,204.03,204.01,14.62668941]
[1753202697502,1e-08,204.03,204.0,14.62668941]
[1753202698194,0.71000001,204.03,204.0,14.62668941]
[1753202698801,0.71,204.02,203.97,14.62668941]
[1753202699099,0.71,204.02,203.99,14.62668941]
[1753202699302,0.71,204.02,203.98,14.62668941]
[1753202699500,14.62668941,204.01,203.96,8.0]
[1753202700004,35.98000001,204.03,203.96,8.0]
[1753202700005,19.52889049,203.99,203.96,8.0]